bitfinex/quotes_BTCUSD_20251019
["timestamp","ask_amount","ask_price","bid_price","bid_amount"]
[1760900850214,4.12259155,109330.0,109320.0,0.00104261]
[1760900854735,5.11645491,109330.0,109320.0,0.00104261]
[1760900854989,4.73882036,109330.0,109320.0,0.00104261]
[1760900855510,4.7372262,109330.0,109320.0,0.00104261]
[1760900855708,4.71368733,109330.0,109320.0,0.00104261]
[1760900855917,4.6880481,109330.0,109320.0,0.00104261]
[1760900856329,5.11964397,109330.0,109320.0,0.00104261]
[1760900856531,4.5728081,109330.0,109320.0,0.00104261]
[1760900856756,4.59364168,109330.0,109320.0,0.00104261]
[1760900856961,4.66223172,109330.0,109320.0,0.00104261]
[1760900857349,4.66123172,109330.0,109320.0,0.00104261]
[1760900857756,4.54599172,109330.0,109320.0,0.00104261]
[1760900858015,4.66223172,109330.0,109320.0,0.00104261]
[1760900858326,4.54799172,109330.0,109320.0,0.00104261]
[1760900858598,4.75923252,109330.0,109320.0,0.00104261]
[1760900858821,4.64399252,109330.0,109320.0,0.00104261]
[1760900859026,4.6648261,109330.0,109320.0,0.00104261]
[1760900859442,5.09642197,109330.0,109320.0,0.00104261]
[1760900859641,5.09642197,109330.0,109310.0,0.00044928]
[1760900859642,4.87955826,109320.0,109310.0,0.00044928]
[1760900859781,4.93354551,109320.0,109310.0,0.00044928]
[1760900860198,4.96107075,109320.0,109310.0,0.00044928]
[1760900860406,5.09066016,109320.0,109310.0,0.00044928]
[1760900860859,5.09166016,109320.0,109310.0,0.00044928]
[1760900861069,4.97642016,109320.0,109310.0,0.00044928]
[1760900861281,6.48185419,109320.0,109310.0,0.00044928]
[1760900861594,6.28120777,109320.0,109310.0,0.00044928]
[1760900861936,6.39644777,109320.0,109310.0,0.00044928]
[1760900862263,4.98642016,109320.0,109310.0,0.00044928]
[1760900862488,4.98542016,109320.0,109310.0,0.00044928]
[1760900862672,5.11079491,109320.0,109310.0,0.00044928]
[1760900862887,5.11179491,109320.0,109310.0,0.00044928]
[1760900863304,4.99555491,109320.0,109310.0,0.00044928]
[1760900863475,5.11179491,109320.0,109310.0,0.00044928]
[1760900864058,5.04769884,109320.0,109310.0,0.00044928]
[1760900864265,4.93245884,109320.0,109310.0,0.00044928]
[1760900864465,5.04769884,109320.0,109310.0,0.00044928]
[1760900865266,4.93245884,109320.0,109310.0,0.0007969]
[1760900865493,5.04769884,109320.0,109310.0,0.0007969]
[1760900865895,4.93245884,109320.0,109310.0,0.0007969]
[1760900866100,4.49186297,109320.0,109310.0,0.0007969]
[1760900866301,4.59275356,109320.0,109310.0,0.0007969]
[1760900866496,5.02434943,109320.0,109310.0,0.0007969]
[1760900866702,4.47751356,109320.0,109310.0,0.0007969]
[1760900867357,4.59275356,109320.0,109310.0,0.0007969]
[1760900867560,4.47751356,109320.0,109310.0,0.0007969]
[1760900867979,4.59275356,109320.0,109310.0,0.0007969]
[1760900868594,4.47751356,109320.0,109310.0,0.0007969]
[1760900869222,4.59275356,109320.0,109310.0,0.0007969]
[1760900869425,4.47751356,109320.0,109310.0,0.0007969]
[1760900869624,4.59275356,109320.0,109310.0,0.0007969]
[1760900869871,4.47751356,109320.0,109310.0,0.0007969]
[1760900870065,4.59275356,109320.0,109310.0,0.0007969]
[1760900870265,4.47751356,109320.0,109310.0,0.0007969]
[1760900870469,4.59275356,109320.0,109310.0,0.0007969]
[1760900872328,4.47751356,109320.0,109310.0,0.0007969]
[1760900872547,4.59275356,109320.0,109310.0,0.0007969]
[1760900872881,4.59434803,109320.0,109310.0,0.0007969]
[1760900873209,4.47910803,109320.0,109310.0,0.0007969]
[1760900874280,4.59434803,109320.0,109310.0,0.0007969]
[1760900874481,4.47910803,109320.0,109310.0,0.0007969]
[1760900874682,4.47910803,109320.0,109310.0,0.18376277]
[1760900874683,0.54365382,109320.0,109310.0,0.18376277]
[1760900874894,0.02070468,109320.0,109310.0,0.18376277]
[1760900875118,0.75048969,109320.0,109310.0,0.0007969]
[1760900875324,0.73337948,109320.0,109310.0,0.0007969]
[1760900875526,0.73178501,109320.0,109310.0,0.0007969]
[1760900875763,0.74886432,109320.0,109310.0,0.0007969]
[1760900875897,1.17946019,109320.0,109310.0,0.0007969]
[1760900876305,1.18046019,109320.0,109310.0,0.0007969]
[1760900876562,1.17946019,109320.0,109310.0,0.0007969]
[1760900883946,0.31626845,109320.0,109310.0,0.0007969]
[1760900884090,1.17946019,109320.0,109310.0,0.0007969]
[1760900888263,0.96969869,109320.0,109310.0,0.0007969]
[1760900888698,1.15264783,109320.0,109310.0,0.0007969]
[1760900892160,1.16119061,109320.0,109310.0,0.0007969]
[1760900892749,1.16119061,109320.0,109310.0,0.18376277]
[1760900895558,0.45821796,109320.0,109310.0,0.18376277]
[1760900895861,0.13327931,109320.0,109310.0,0.18376277]
[1760900896822,0.01807931,109320.0,109310.0,0.18376277]
[1760900897639,0.01807931,109320.0,109310.0,0.33166277]
[1760900897837,0.44967518,109320.0,109310.0,0.33166277]
[1760900898175,0.45823021,109320.0,109310.0,0.33166277]
[1760900899023,0.01807931,109320.0,109310.0,0.61535864]
[1760900899192,0.001,109320.0,109310.0,0.18376277]
[1760900899393,0.43259587,109320.0,109310.0,0.18376277]
[1760900900557,0.001,109320.0,109310.0,0.18376277]
[1760900900753,0.7660224,109330.0,109310.0,0.18376277]
[1760900900953,0.79168435,109330.0,109320.0,0.18294914]
[1760900902992,0.78313037,109330.0,109320.0,0.18294914]
[1760900903283,0.79168258,109330.0,109320.0,0.18294914]
[1760900904540,0.79168258,109330.0,109310.0,0.29896277]
[1760900904744,0.43159587,109320.0,109310.0,0.29896277]
[1760900906448,0.43159587,109320.0,109310.0,0.18376277]
[1760900910339,0.24139727,109320.0,109310.0,0.18376277]
[1760900911103,0.5830892,109330.0,109320.0,0.18294914]
[1760900911316,0.60018796,109330.0,109320.0,0.19994257]
[1760900912650,0.05339209,109330.0,109320.0,0.19994257]
[1760900915071,0.05339209,109330.0,109320.0,0.31514257]
[1760900915204,0.05339209,109330.0,109320.0,0.29814914]
[1760900915408,0.03629333,109330.0,109320.0,0.29814914]
[1760900915649,1.08549892,109340.0,109330.0,0.1829324]
[1760900915850,0.92822976,109340.0,109330.0,0.1829324]
[1760900916750,0.92922976,109340.0,109330.0,0.1829324]
[1760900917396,1.1497727,109340.0,109330.0,0.1829324]
[1760900918167,1.14977188,109340.0,109330.0,0.1829324]
[1760900920043,0.96685621,109340.0,109330.0,0.1829324]
[1760900920955,0.96685621,109340.0,109330.0,0.20122564]
[1760900921324,0.53541521,109340.0,109330.0,0.20122564]
[1760900922514,0.71833088,109340.0,109330.0,0.20122564]
[1760900924616,1.14977188,109340.0,109330.0,0.20122564]
[1760900925021,0.42021521,109340.0,109330.0,0.20122564]
[1760900925731,0.60313088,109340.0,109330.0,0.20122564]
[1760900926607,0.06586855,109340.0,109330.0,0.20122564]
[1760900927493,0.06427426,109340.0,109330.0,0.20122564]
[1760900927706,0.05572581,109340.0,109330.0,0.20122564]
[1760900927909,0.05572581,109340.0,109330.0,0.1829324]
[1760900928336,0.05573733,109340.0,109330.0,0.1829324]
[1760900929574,0.05473733,109340.0,109330.0,0.1829324]
[1760900935807,0.03762727,109340.0,109330.0,0.1829324]
[1760900936199,3.18290111,109350.0,109340.0,0.18291567]
[1760900936592,3.20854704,109350.0,109340.0,0.18291567]
[1760900937427,3.24742696,109350.0,109340.0,0.18291567]
[1760900939256,3.06452585,109350.0,109340.0,0.18291567]
[1760900941255,3.06452585,109350.0,109340.0,0.20120723]
[1760900941841,3.04742856,109350.0,109340.0,0.20120723]
[1760900942071,3.06453016,109350.0,109340.0,0.20120723]
[1760900943696,3.6788701,109350.0,109340.0,0.18291567]
[1760900946302,3.49597116,109350.0,109340.0,0.18291567]
[1760900946913,3.49598653,109350.0,109340.0,0.18291567]
[1760900947629,3.49598683,109350.0,109340.0,0.18291567]
[1760900950406,3.67888577,109350.0,109340.0,0.18291567]
[1760900950749,0.18291567,109340.0,109330.0,0.1829324]
[1760900951001,3.45710691,109340.0,109330.0,0.1829324]
[1760900951412,3.75677655,109340.0,109330.0,0.1829324]
[1760900951642,3.75518258,109340.0,109330.0,0.1829324]
[1760900952021,3.75517862,109340.0,109330.0,0.1829324]
[1760900954458,3.75517862,109340.0,109320.0,0.3308483]
[1760900954459,0.78349643,109340.0,109320.0,0.3308483]
[1760900954748,0.431441,109330.0,109320.0,0.3308483]
[1760900954964,0.45710295,109330.0,109320.0,0.3308483]
[1760900956051,0.45710295,109330.0,109310.0,0.33558325]
[1760900956052,1.41147635,109330.0,109310.0,0.02830909]
[1760900956255,4.59109046,109320.0,109310.0,0.0007969]
[1760900956457,4.59109046,109320.0,109280.0,8e-05]
[1760900956458,0.52299935,109290.0,109280.0,8e-05]
[1760900956661,4.12353373,109290.0,109280.0,0.00022789]
[1760900956891,4.15105975,109290.0,109280.0,0.00022789]
[1760900957096,4.14251215,109290.0,109280.0,0.00022789]
[1760900958351,4.57554772,109290.0,109280.0,0.00022789]
[1760900958758,4.14410672,109290.0,109280.0,0.00022789]
[1760900959541,4.11578891,109290.0,109280.0,0.00022789]
[1760900962017,4.09868094,109290.0,109280.0,0.00022789]
[1760900962344,3.98356094,109290.0,109280.0,0.00127107]
[1760900962646,4.09872094,109290.0,109280.0,0.00127107]
[1760900965078,3.45675457,109290.0,109280.0,0.18428717]
[1760900965232,0.00159457,109290.0,109280.0,0.18428717]
[1760900965453,0.11675457,109290.0,109280.0,0.18428717]
[1760900965653,0.00159457,109290.0,109280.0,0.18428717]
[1760900966690,3.0,109300.0,109290.0,0.18299935]
[1760900966851,0.11516,109300.0,109290.0,0.18299935]
[1760900967252,0.68728948,109310.0,109290.0,0.18299935]
[1760900967575,3.0,109300.0,109290.0,0.18299935]
[1760900967762,3.001,109300.0,109290.0,0.18299935]
[1760900967960,0.001,109300.0,109290.0,0.18299935]
[1760900968172,0.001,109300.0,109290.0,0.20129928]
[1760900972359,0.001,109300.0,109290.0,0.20199467]
[1760900972559,0.001,109300.0,109290.0,0.18369474]
[1760900974463,0.00159431,109310.0,109290.0,0.18369474]
[1760900974464,0.00159431,109310.0,109300.0,0.18298261]
[1760900974864,3.70153955,109310.0,109300.0,0.18298261]
[1760900975147,3.20153955,109310.0,109300.0,0.18298261]
[1760900975317,3.63298055,109310.0,109300.0,0.18298261]
[1760900975922,3.0,109300.0,109290.0,0.18299935]
[1760900976789,3.43171705,109300.0,109290.0,0.18299935]
[1760900976995,0.43171705,109300.0,109290.0,0.18299935]
[1760900977197,4.04643345,109290.0,109260.0,0.34009006]
[1760900977395,3.43171705,109270.0,109260.0,0.19232547]
[1760900977587,3.43171705,109270.0,109260.0,0.19273131]
[1760900977800,0.46003486,109270.0,109260.0,0.00013541]
[1760900978229,0.64306771,109270.0,109260.0,0.00013541]
[1760900978459,0.68018036,109270.0,109260.0,0.00013541]
[1760900978926,0.69716653,109270.0,109260.0,0.00013541]
[1760900979140,0.66884872,109270.0,109260.0,0.00013541]
[1760900979359,0.67762666,109270.0,109260.0,0.00013541]
[1760900980452,0.67922135,109270.0,109260.0,0.00113541]
[1760900980688,0.67922135,109270.0,109260.0,0.00287437]
[1760900982408,0.67925073,109270.0,109260.0,0.00287437]
[1760900985023,1.01925073,109270.0,109260.0,0.00287437]
[1760900985235,0.58753368,109270.0,109260.0,0.00287437]
[1760900985446,1.01925073,109270.0,109260.0,0.00287437]
[1760900985918,0.58753368,109270.0,109260.0,0.00287437]
[1760900986138,1.01925073,109270.0,109260.0,0.00287437]
[1760900986310,0.40450083,109270.0,109260.0,0.18592397]
[1760900986606,0.83621788,109270.0,109260.0,0.18592397]
[1760900986837,0.40450083,109270.0,109260.0,0.18592397]
[1760900987046,0.02738818,109270.0,109260.0,0.61764102]
[1760900987505,0.01861024,109270.0,109260.0,0.61764102]
[1760900987722,0.01701555,109270.0,109260.0,0.61764102]
[1760900987923,0.01701555,109270.0,109260.0,0.73284102]
[1760900988674,0.48660217,109280.0,109270.0,0.18303285]
[1760900988675,3.0,109280.0,109270.0,0.18303285]
[1760900988893,0.12355918,109280.0,109270.0,0.20133613]
[1760900989246,0.00835918,109280.0,109270.0,0.20133613]
[1760900989715,0.44007623,109280.0,109270.0,0.20133613]
[1760900990113,0.62309233,109280.0,109270.0,0.20133613]
[1760900991105,0.77032703,109280.0,109270.0,0.20133613]
[1760900991436,1.11192179,109280.0,109270.0,0.20133613]
[1760900991940,0.56500474,109280.0,109270.0,0.20133613]
[1760900992070,0.68020474,109280.0,109270.0,0.20133613]
[1760900992681,0.38198864,109280.0,109270.0,0.20133613]
[1760900992881,0.49718864,109280.0,109270.0,0.20133613]
[1760900993223,0.38198864,109280.0,109270.0,0.6147499]
[1760900993405,0.49718864,109280.0,109270.0,0.18303285]
[1760900993613,0.38198864,109280.0,109270.0,0.6147499]
[1760900993817,0.49718864,109280.0,109270.0,0.6147499]
[1760900994232,0.38198864,109280.0,109270.0,0.61614094]
[1760900994598,0.49718864,109280.0,109270.0,0.61614094]
[1760900995384,0.38198864,109280.0,109270.0,0.61614094]
[1760900995683,0.68020474,109280.0,109270.0,0.00139104]
[1760900995861,0.68020474,109280.0,109270.0,0.18442389]
[1760900996546,0.56500474,109280.0,109270.0,0.18442389]
[1760900996780,0.68020474,109280.0,109270.0,0.18442389]
[1760900997382,0.68020474,109280.0,109270.0,0.33232389]
[1760900997696,0.56500474,109280.0,109270.0,0.33232389]
[1760900997921,0.68020474,109280.0,109270.0,0.33232389]
[1760900998052,0.56500474,109280.0,109270.0,0.33232389]
[1760900998423,0.68020474,109280.0,109270.0,0.33232389]
[1760900998827,0.56500474,109280.0,109270.0,0.33232389]
[1760900998956,0.68020474,109280.0,109270.0,0.33232389]
[1760900999716,1.11192179,109280.0,109270.0,0.33232389]
[1760901000236,0.68020474,109280.0,109270.0,0.33232389]
[1760901000544,0.58205957,109280.0,109270.0,0.14929104]
[1760901000749,0.69725957,109280.0,109270.0,0.33232389]
[1760901001242,1.12897662,109280.0,109270.0,0.14929104]
[1760901001581,1.13750569,109280.0,109270.0,0.14929104]
[1760901001791,0.06757254,109280.0,109270.0,0.63444422]
[1760901001991,0.01705483,109280.0,109270.0,0.61614094]
[1760901004710,0.01705483,109280.0,109270.0,0.18442389]
[1760901004912,0.01705483,109280.0,109270.0,0.61614094]
[1760901009257,0.03123445,109290.0,109280.0,0.1830161]
[1760901009449,0.04830655,109290.0,109280.0,0.63303476]
[1760901009652,0.0170721,109290.0,109280.0,0.61577633]
[1760901010382,0.0170721,109290.0,109280.0,0.18405928]
[1760901010586,0.0170721,109290.0,109280.0,0.20236089]
[1760901010787,0.0170721,109290.0,109280.0,0.18405928]
[1760901011425,0.0170721,109290.0,109280.0,0.29921928]
[1760901012001,0.0170721,109290.0,109280.0,0.44711928]
[1760901013187,0.03372061,109300.0,109290.0,0.18299935]
[1760901013388,0.01707219,109300.0,109290.0,0.63301633]
[1760901013635,0.43171705,109320.0,109310.0,0.1829597]
[1760901013794,0.44879201,109320.0,109310.0,0.1829597]
[1760901014649,0.04820507,109320.0,109310.0,0.1829597]
[1760901014831,0.47992212,109320.0,109310.0,0.18309511]
[1760901015897,0.04820507,109320.0,109310.0,0.18309511]
[1760901016092,0.01707496,109320.0,109310.0,0.61481216]
[1760901016303,0.01807496,109320.0,109310.0,0.61481216]
[1760901016708,0.001,109320.0,109310.0,0.61481216]
[1760901016912,0.03238215,109320.0,109310.0,0.61481216]
[1760901017277,3.61524,109330.0,109320.0,0.18294914]
[1760901017469,3.13229668,109330.0,109320.0,0.20124405]
[1760901018687,3.16339518,109330.0,109320.0,0.6329611]
[1760901018893,0.04815518,109330.0,109320.0,0.18294914]
[1760901019103,0.04915518,109330.0,109320.0,0.20124405]
[1760901020000,0.04815518,109330.0,109320.0,0.20124405]
[1760901020829,0.47987223,109330.0,109320.0,0.20124405]
[1760901020958,0.66280463,109330.0,109320.0,0.20124405]
[1760901021163,4.09452168,109330.0,109310.0,0.18310128]
[1760901021369,1.16162324,109320.0,109310.0,0.18310128]
[1760901021626,0.56401373,109320.0,109310.0,0.18310128]
[1760901025148,0.55901373,109320.0,109310.0,0.18310128]
[1760901025782,0.74196287,109320.0,109310.0,0.18310128]
[1760901029263,0.74196287,109320.0,109310.0,0.00013541]
[1760901029468,1.17367992,109320.0,109310.0,0.00013541]
[1760901029668,0.74696287,109320.0,109310.0,0.18310128]
[1760901032169,0.75549737,109320.0,109310.0,0.18310128]
[1760901032770,0.62320069,109320.0,109310.0,0.18310128]
[1760901033598,0.44025155,109320.0,109310.0,0.18310128]
[1760901033863,0.0085345,109320.0,109310.0,0.18310128]
[1760901034065,0.0085345,109320.0,109310.0,0.20139786]
[1760901034242,0.64574795,109330.0,109310.0,0.20139786]
[1760901034419,3.0,109320.0,109310.0,0.20139786]
[1760901036257,0.57797555,109330.0,109320.0,0.18294914]
[1760901036456,0.76944829,109330.0,109320.0,0.18294914]
[1760901036694,0.76944829,109330.0,109320.0,0.18258264]
[1760901036867,0.33773124,109330.0,109320.0,0.18258264]
[1760901037668,0.33773124,109330.0,109320.0,0.20087755]
[1760901038111,0.22257124,109330.0,109320.0,0.20087755]
[1760901044185,0.22257124,109330.0,109320.0,0.18258264]
[1760901044876,0.23967807,109330.0,109310.0,0.18310128]
[1760901045655,0.67116933,109330.0,109310.0,0.18310128]
[1760901047799,0.43149126,109320.0,109310.0,0.00013541]
[1760901048017,0.64010226,109320.0,109310.0,0.00013541]
[1760901048416,0.6416966,109320.0,109310.0,0.00013541]
[1760901049054,3.7568566,109320.0,109310.0,0.00013541]
[1760901049252,4.18834786,109320.0,109310.0,0.00013541]
[1760901049457,3.78517441,109320.0,109310.0,0.00013541]
[1760901049958,4.21666511,109320.0,109310.0,0.00013541]
[1760901050115,3.78517385,109320.0,109310.0,0.00013541]
[1760901052326,4.12517385,109320.0,109310.0,0.00013541]
[1760901052542,4.59284739,109320.0,109310.0,0.00013541]
[1760901052753,4.68725381,109320.0,109310.0,0.00013541]
[1760901052953,4.61848662,109320.0,109310.0,0.00013541]
[1760901053373,4.61689228,109320.0,109310.0,0.00013541]
[1760901053910,4.64441462,109320.0,109310.0,0.00013541]
[1760901054414,4.64541462,109320.0,109310.0,0.00013541]
[1760901054749,4.70609061,109320.0,109310.0,0.00013541]
[1760901056227,4.64641462,109320.0,109310.0,0.00013541]
[1760901059107,4.66076465,109320.0,109310.0,0.00013541]
[1760901059663,4.54560465,109320.0,109310.0,0.00013541]
[1760901059869,4.66076465,109320.0,109310.0,0.00013541]
[1760901060079,4.54560465,109320.0,109310.0,0.00013541]
[1760901060272,4.66235922,109320.0,109310.0,0.00013541]
[1760901060476,4.57457396,109320.0,109310.0,0.00013541]
[1760901060699,4.68973396,109320.0,109310.0,0.00013541]
[1760901061626,4.69451799,109320.0,109310.0,0.00013541]
[1760901061845,4.57935799,109320.0,109310.0,0.00013541]
[1760901062074,4.69451799,109320.0,109310.0,0.00013541]
[1760901062551,0.18296587,109310.0,109300.0,0.00034766]
[1760901062770,4.14218326,109310.0,109300.0,0.00039699]
[1760901062996,3.80923547,109310.0,109300.0,0.00039699]
[1760901063232,3.8367618,109310.0,109300.0,0.00039699]
[1760901063455,3.84154694,109310.0,109300.0,0.00039699]
[1760901063942,3.84254694,109310.0,109300.0,0.00039699]
[1760901064153,3.84354694,109310.0,109300.0,0.00039699]
[1760901064805,3.93795336,109310.0,109300.0,0.00039699]
[1760901066191,4.27795336,109310.0,109300.0,0.00039699]
[1760901066780,4.18354694,109310.0,109300.0,0.00039699]
[1760901067747,4.06838694,109310.0,109300.0,0.00039699]
[1760901067952,4.18354694,109310.0,109300.0,0.00039699]
[1760901068776,4.06838694,109310.0,109300.0,0.00039699]
[1760901069002,4.18354694,109310.0,109300.0,0.00039699]
[1760901069171,4.22667688,109310.0,109300.0,0.00039699]
[1760901069377,4.11311161,109310.0,109300.0,0.00039699]
[1760901069778,4.22827161,109310.0,109300.0,0.00039699]
[1760901070198,4.22820647,109310.0,109300.0,0.00039699]
[1760901070398,4.11304647,109310.0,109300.0,0.00039699]
[1760901070756,4.22820647,109310.0,109300.0,0.00039699]
[1760901071723,4.69588001,109310.0,109300.0,1e-08]
[1760901072127,4.69588001,109310.0,109250.0,0.0013]
[1760901072439,4.69588001,109310.0,109250.0,0.00179331]
[1760901072440,4.38603212,109260.0,109250.0,0.00179331]
[1760901072666,4.59197068,109260.0,109250.0,0.00179331]
[1760901073055,4.59356577,109260.0,109250.0,0.00179331]
[1760901075846,4.59197068,109260.0,109250.0,0.00179331]
[1760901076642,4.61608893,109260.0,109250.0,0.00179331]
[1760901077446,4.59197068,109260.0,109250.0,0.00179331]
[1760901078414,4.60048635,109260.0,109250.0,0.00179331]
[1760901078597,4.60208148,109260.0,109250.0,0.00179331]
[1760901080985,4.60308148,109260.0,109250.0,0.00179331]
[1760901081539,4.63061905,109260.0,109250.0,0.00179331]
[1760901081910,3.76763653,109260.0,109250.0,0.00179331]
[1760901082104,4.72502547,109260.0,109250.0,0.00179331]
[1760901082254,4.72282547,109260.0,109250.0,0.00179331]
[1760901082639,4.74878919,109260.0,109250.0,0.00179331]
[1760901082915,4.65438277,109260.0,109250.0,0.00179331]
[1760901083297,4.65438277,109260.0,109250.0,0.00353251]
[1760901083927,4.65338277,109260.0,109250.0,0.00353251]
[1760901084152,4.65438277,109260.0,109250.0,0.00353251]
[1760901084696,4.65538277,109260.0,109250.0,0.00353251]
[1760901086423,4.65378764,109260.0,109250.0,0.00353251]
[1760901087477,0.52306636,109250.0,109240.0,0.0004]
[1760901087690,4.04401221,109250.0,109240.0,0.00044925]
[1760901087853,4.08019449,109250.0,109240.0,0.00044925]
[1760901088068,4.12698985,109250.0,109240.0,0.0007972]
[1760901088466,4.12798985,109250.0,109240.0,0.0007972]
[1760901088662,4.12958522,109250.0,109240.0,0.0007972]
[1760901088874,3.94751886,109250.0,109240.0,0.0007972]
[1760901089287,4.13058522,109250.0,109240.0,0.0007972]
[1760901090441,4.13055274,109250.0,109240.0,0.0007972]
[1760901090648,4.12955274,109250.0,109240.0,0.0007972]
[1760901090820,4.13055274,109250.0,109240.0,0.0007972]
[1760901091913,4.56683147,109250.0,109240.0,0.0007972]
[1760901092699,4.63663585,109250.0,109240.0,0.0007972]
[1760901093230,0.18311664,109220.0,109210.0,0.0004]
[1760901093418,3.74950685,109220.0,109210.0,0.0004]
[1760901093620,3.76660344,109220.0,109210.0,0.0004]
[1760901093825,4.19091867,109220.0,109210.0,0.0004]
[1760901094047,4.20687754,109220.0,109210.0,0.0004]
[1760901094261,4.23843023,109220.0,109210.0,0.0004]
[1760901094465,4.21265627,109220.0,109210.0,0.0004]
[1760901094707,4.21265627,109220.0,109190.0,0.0004]
[1760901094708,4.05933246,109200.0,109190.0,0.0004]
[1760901094914,4.47959595,109200.0,109190.0,0.0004]
[1760901095119,4.01955175,109200.0,109190.0,0.0004]
[1760901095320,4.00253516,109200.0,109190.0,0.0004]
[1760901095560,4.59525884,109200.0,109190.0,0.0004]
[1760901095894,0.21936601,109180.0,109170.0,0.00500069]
[1760901096140,4.22761827,109180.0,109170.0,0.00500069]
[1760901096343,4.22761827,109180.0,109130.0,8e-05]
[1760901096344,0.18325087,109140.0,109130.0,8e-05]
[1760901096565,4.22972399,109140.0,109130.0,8e-05]
[1760901096740,3.43718776,109140.0,109130.0,8e-05]
[1760901096947,3.5234906,109140.0,109130.0,8e-05]
[1760901097184,4.13985779,109140.0,109130.0,8e-05]
[1760901097370,4.60533099,109140.0,109130.0,8e-05]
[1760901097597,3.76870959,109140.0,109130.0,8e-05]
[1760901097970,3.18081212,109140.0,109120.0,0.01832844]
[1760901098212,0.03258515,109140.0,109120.0,0.6347285]
[1760901098384,0.03158515,109140.0,109130.0,0.61638398]
[1760901098592,0.03258515,109140.0,109130.0,0.61638398]
[1760901098826,0.0181464,109140.0,109130.0,0.18326766]
[1760901099021,0.00114692,109140.0,109130.0,0.67516114]
[1760901099363,0.00114692,109140.0,109130.0,0.79140114]
[1760901099563,0.00114692,109140.0,109130.0,0.88581202]
[1760901099783,0.00014692,109140.0,109130.0,0.88581202]
[1760901099991,0.00014692,109140.0,109130.0,0.89581201]
[1760901100190,0.00114692,109140.0,109130.0,0.905812]
[1760901100397,0.0015965,109170.0,109160.0,0.18321729]
[1760901100594,0.00168681,109170.0,109160.0,0.69343249]
[1760901100916,0.01862516,109170.0,109160.0,0.67511077]
[1760901101126,0.01702866,109170.0,109160.0,0.67511077]
[1760901101327,0.01702866,109170.0,109160.0,0.18321729]
[1760901101475,9.031e-05,109170.0,109160.0,0.18321729]
[1760901101675,9.031e-05,109170.0,109160.0,0.69343249]
[1760901101890,9.031e-05,109170.0,109160.0,0.18321729]
[1760901102318,0.01703495,109170.0,109160.0,0.18321729]
[1760901115879,0.01703495,109170.0,109160.0,1.27973685]
[1760901116080,9.031e-05,109170.0,109160.0,1.27141512]
[1760901116246,9.031e-05,109170.0,109160.0,1.2742009]
[1760901116827,9.031e-05,109170.0,109160.0,1.28420089]
[1760901117052,9.031e-05,109170.0,109160.0,1.62420089]
[1760901117258,9.031e-05,109170.0,109160.0,1.62520089]
[1760901117470,9.031e-05,109170.0,109160.0,1.66296161]
[1760901117671,9.031e-05,109170.0,109160.0,2.09154389]
[1760901118307,9.031e-05,109170.0,109160.0,1.69914389]
[1760901118653,9.031e-05,109170.0,109160.0,1.69814389]
[1760901118850,9.031e-05,109170.0,109160.0,1.69914389]
[1760901120236,9.031e-05,109170.0,109160.0,1.81530389]
[1760901120448,9.031e-05,109170.0,109160.0,0.63141394]
[1760901120660,9.031e-05,109170.0,109160.0,0.77330743]
[1760901120886,0.01709841,109170.0,109160.0,0.73765395]
[1760901121093,0.19229308,109210.0,109200.0,0.18315018]
[1760901121094,3.0,109210.0,109200.0,0.18315018]
[1760901121305,0.34159588,109220.0,109210.0,0.18313341]
[1760901121515,0.02112284,109220.0,109210.0,0.18313341]
[1760901122121,0.02112284,109220.0,109210.0,0.20144675]
[1760901122339,0.01952696,109220.0,109210.0,0.20144675]
[1760901123086,0.01952696,109220.0,109210.0,0.18313341]
[1760901123283,0.01952696,109220.0,109210.0,0.29945341]
[1760901125281,0.01102101,109220.0,109210.0,0.29945341]
[1760901126253,0.01102101,109220.0,109210.0,0.44735341]
[1760901128249,0.0195305,109220.0,109210.0,0.44735341]
[1760901128812,0.01102101,109220.0,109210.0,0.44735341]
[1760901132904,0.02803361,109220.0,109210.0,0.44735341]
[1760901133765,0.02803361,109220.0,109210.0,0.4483976]
[1760901134419,0.21115025,109220.0,109210.0,0.4483976]
[1760901134567,0.02803361,109220.0,109210.0,0.4483976]
[1760901134970,0.02803444,109220.0,109210.0,0.4483976]
[1760901135394,0.0001481,109220.0,109210.0,0.79239108]
[1760901136444,0.0001481,109220.0,109210.0,0.94029108]
[1760901137209,0.0001481,109220.0,109210.0,0.94129108]
[1760901137702,0.0001481,109220.0,109210.0,1.03570196]
[1760901138500,0.0001481,109220.0,109210.0,1.37570196]
[1760901138656,0.0001481,109220.0,109210.0,1.38570195]
[1760901139074,0.0001481,109220.0,109210.0,1.37570196]
[1760901139310,0.0001481,109220.0,109210.0,1.38570195]
[1760901139974,0.0001481,109220.0,109210.0,0.88380848]
[1760901140176,0.0001481,109220.0,109210.0,1.38570195]
[1760901142895,0.0001481,109220.0,109210.0,1.38470195]
[1760901143366,0.0001481,109220.0,109210.0,1.38570195]
[1760901143838,0.0001481,109220.0,109210.0,1.38470195]
[1760901144040,0.0001481,109220.0,109210.0,1.39670194]
[1760901144507,0.03691631,109260.0,109250.0,0.18306636]
[1760901144718,0.07181019,109260.0,109250.0,0.18306636]
[1760901144828,0.03489388,109260.0,109250.0,0.19261266]
[1760901145034,0.03489388,109260.0,109250.0,0.18306636]
[1760901145249,0.03489388,109260.0,109250.0,0.20137299]
[1760901146413,0.03493388,109260.0,109250.0,0.20137299]
[1760901146574,0.07245061,109260.0,109250.0,0.20137299]
[1760901150833,0.07245061,109260.0,109250.0,0.63326887]
[1760901151039,0.07245061,109260.0,109250.0,0.61496224]
[1760901152641,0.0257371,109260.0,109250.0,0.61496224]
[1760901153794,0.0257371,109260.0,109250.0,0.61596224]
[1760901154303,0.00870439,109260.0,109250.0,0.61596224]
[1760901154486,0.00870439,109260.0,109250.0,0.19361266]
[1760901154687,0.00870439,109260.0,109250.0,0.61596224]
[1760901157873,0.00870439,109260.0,109250.0,0.18406636]
[1760901158105,0.00870439,109260.0,109250.0,0.61596224]
[1760901158303,0.00018804,109260.0,109250.0,0.61596224]
[1760901158774,0.00018804,109260.0,109250.0,0.61592731]
[1760901158975,0.00870247,109260.0,109250.0,0.61592731]
[1760901159186,0.00018804,109260.0,109250.0,0.61592731]
[1760901159795,0.00018804,109260.0,109250.0,0.76382731]
[1760901160168,0.00018804,109260.0,109250.0,1.24497569]
[1760901160806,0.00018804,109260.0,109250.0,1.20823818]
[1760901161003,0.00018804,109260.0,109250.0,1.06033818]
[1760901161168,0.00018804,109260.0,109250.0,1.49119913]
[1760901161369,0.00018804,109260.0,109250.0,1.06033818]
[1760901161910,0.00018804,109260.0,109250.0,1.05033819]
[1760901162108,0.00018804,109260.0,109250.0,1.09743312]
[1760901162327,0.00018804,109260.0,109250.0,1.06033818]
[1760901162550,0.00018804,109260.0,109250.0,1.49219913]
[1760901162797,0.00018804,109260.0,109250.0,1.06033818]
[1760901163002,0.00018804,109260.0,109250.0,1.49219913]
[1760901163210,0.00018804,109260.0,109250.0,1.52901111]
[1760901163380,0.00018804,109260.0,109250.0,1.5390111]
[1760901163768,1e-08,109260.0,109250.0,1.5390111]
[1760901166315,1e-08,109260.0,109250.0,1.6869111]
[1760901166741,1e-08,109260.0,109250.0,0.43637723]